Cogmind - Beta 13 @@@ ROGUE MODE // 2024.04.09 @ 21:39:09 Player: Bean Result: Destroyed by Y-54 Guardian with Flak Gun Performance ------------- Evolutions (4) 2000 Regions Visited (8) 1600 Robots Destroyed (15) 75 Value Destroyed (475) 475 Prototype IDs (3) 60 Alien Tech Used (0) 0 Bonus (1082) 1082 TOTAL SCORE: 5292 Bonus ------- Follower Combat Kills 484 Entered Garrisons 200 Met Imprinter 300 Was Imprinted 300 Friendly Fire -202 Cogmind --------- Core Integrity 0/850 Matter 285/300 Energy 73/100 System Corruption 0% Temperature Cool (12) Movement Core (100) Ox1 Location -6/Garrison Parts ------- > --- POWER (2) -------- (None) > --- PROPULSION (4) --- (None) > --- UTILITY (6) ------ System Shield > --- WEAPON (3) ------- Phasing Sabre > --- INVENTORY (5) ---- (None) Peak State ------------ > --- POWER ------------ Light Antimatter Reactor > --- PROPULSION ------- Carbon-fiber Leg Carbon-fiber Leg Carbon-fiber Leg > --- UTILITY ---------- 0b10 Decoder Chip [Scout] Advanced Hacking Suite System Shield System Shield System Shield System Shield > --- WEAPON ----------- Riot Gun Heavy Laser > --- INVENTORY -------- (None) [Rating: 46] Favorites ----------- Power Light Ion Engine Engine Light Ion Engine Power Core Light Nuclear Core Reactor Light Antimatter Reactor Propulsion Flight Unit Leg Carbon-fiber Leg Wheel Wheel Flight Unit Flight Unit Utility System Shield Storage Small Storage Unit Processor 0b10 Decoder Chip [Scout] Hackware System Shield Protection Improved Light Armor Plating Weapon Riot Gun Energy Gun Riot Gun Ballistic Gun Assault Rifle Launcher Precision Grenade Launcher Special Weapon Mining Laser Slashing Weapon Phasing Sabre Build | -11 -10 -10 -9 -9 -7 -6 -6 -6 ------- Run | Yrd Mat Min Mat Min Zio Pro Fac Gar Slots Evolved 8 | . . . 2 . . . 6 . Power 1 | . . . . . . . 1 . Propulsion 2 | . . . 1 . . . 1 . Utility 4 | . . . 1 . . . 3 . Weapon 1 | . . . . . . . 1 . Parts Attached 47 | 7 2 4 14 . 8 5 4 3 Power 4 | 1 . 1 1 . . 1 . . Engine 2 | 1 . . 1 . . . . . Core 1 | . . 1 . . . . . . Reactor 1 | . . . . . . 1 . . Propulsion 11 | 2 2 . 3 . . 3 . 1 Treads . | . . . . . . . . . Leg 4 | . . . . . . 3 . 1 Wheel 2 | 2 . . . . . . . . Hover . | . . . . . . . . . Flight 5 | . 2 . 3 . . . . . Utility 11 | 1 . . 5 . . . 4 1 Device . | . . . . . . . . . Storage 1 | 1 . . . . . . . . Processor 4 | . . . 2 . . . 2 . Hackware 5 | . . . 3 . . . 2 . Protection 1 | . . . . . . . . 1 Artifact . | . . . . . . . . . Weapon 21 | 3 . 3 5 . 8 1 . 1 Energy Gun 10 | 2 . . 3 . 4 1 . . Energy Cannon . | . . . . . . . . . Ballistic Gun 6 | 1 . 3 1 . 1 . . . Ballistic Cannon . | . . . . . . . . . Launcher 3 | . . . . . 3 . . . Special Weapon 1 | . . . 1 . . . . . Impact Weapon . | . . . . . . . . . Slashing Weapon 1 | . . . . . . . . 1 Piercing Weapon . | . . . . . . . . . Special Melee Weapon . | . . . . . . . . . Unidentified Prototypes 3 | . . . . . 2 . 1 . Corrupted Parts 2 | . . . . . . 2 . . System Corruption 7 | . . . . . . 7 . . Parts Lost 21 | . . 1 6 . . 1 . 13 Power 2 | . . . 1 . . . . 1 Propulsion 6 | . . . 2 . . . . 4 Utility 6 | . . . . . . . . 6 Weapon 7 | . . 1 3 . . 1 . 2 Highest Loss Streak 8 | . . 1 6 . . 1 . 8 To Critical Strikes . | . . . . . . . . . Average Slot Usage (%) 85 | . 80 69 76 100 99 97 75 41 Engine 5 | . 14 4 . 11 11 . . . Core 2 | . . 9 9 . . . . . Reactor 2 | . . . . . . 10 6 1 Leg 7 | . . . . . . 26 20 11 Wheel 1 | . 19 . . . . . . . Flight 18 | . 8 28 20 33 33 4 . . Processor 1 | . . . 4 . . . 6 3 Hackware 24 | . . . 22 33 33 33 28 20 Energy Gun 16 | . 28 9 13 11 18 21 13 3 Ballistic Gun 4 | . . 17 4 11 3 . . . Naked Turns . | . . . . . . . . . Heaviest Build 19 | 12 12 9 9 5 9 19 19 19 Greatest Support 45 | 26 26 8 12 12 12 45 45 45 Greatest Overweight (x) 1 | . . 1 1 . . 1 . . Average Overweight (x) . | . . . . . . . . . Largest Inventory Capacity 8 | 8 8 5 5 5 5 5 5 5 Average Capacity 5 | 6 7 5 5 5 5 5 5 5 Most Carried 5 | 4 3 4 5 2 5 5 3 1 Average Carried 2 | 1 1 2 2 2 4 4 . . Final Capacity 8 | 8 5 5 5 5 5 5 5 5 Final Carried 5 | 1 1 2 2 2 5 4 . . Class Distribution -------------------- 72% | Hacker-Mutant 27% | Mutant Dominant Class ---------------- Mutant | -10/Materials Mutant | -10/Mines Hacker-Mutant | -9/Materials Hacker-Mutant | -9/Mines Hacker-Mutant | -7/Zion Hacker-Mutant | -6/Proximity Caves Hacker-Mutant | -6/Factory Hacker-Mutant | -6/Garrison Resources | -11 -10 -10 -9 -9 -7 -6 -6 -6 ----------- Run | Yrd Mat Min Mat Min Zio Pro Fac Gar Matter Collected 566 | 173 37 67 115 27 17 130 . . Remotely . | . . . . . . . . . Salvage Created 606 | . 109 37 56 . . 404 . . Parts 32 | . 2 3 11 . . 16 . . Haulers Intercepted . | . . . . . . . . . Recyclers Shooed . | . . . . . . . . . Parts Field Recycled . | . . . . . . . . . Retrieved Matter . | . . . . . . . . . Parts Self-Destructed 15 | . . . . . . 15 . . Prevented 21 | . . . . . . 21 . . Kills | -11 -10 -10 -9 -9 -7 -6 -6 -6 ------- Run | Yrd Mat Min Mat Min Zio Pro Fac Gar Combat Hostiles Destroyed 14 | . 2 1 4 . . 7 . . Guns 8 | . 1 1 2 . . 4 . . Cannons 2 | . . . 2 . . . . . AOE 3 | . 1 . . . . 2 . . Classes Destroyed 7 | . 1 2 2 . . 2 . . Tunneler 1 | . . 1 . . . . . . Swarmer 5 | . . . 3 . . 2 . . Grunt 6 | . 2 . . . . 4 . . Brawler 1 | . . . . . . 1 . . Duelist 1 | . . . . . . 1 . . Sentry 1 | . . . 1 . . . . . Assembled 1 | . . 1 . . . . . . Best Kill Streak 3 | . 2 1 2 . . 3 . . Combat Bots Only 3 | . 2 1 2 . . 3 . . Max Kills in Single Turn 2 | . 1 1 1 . . 2 . . Gunslinging . | . . . . . . . . . Exploded 2 | . 1 . . . . 2 . . Melee . | . . . . . . . . . Uniques/NPCs Destroyed . | . . . . . . . . . Combat | -11 -10 -10 -9 -9 -7 -6 -6 -6 -------- Run | Yrd Mat Min Mat Min Zio Pro Fac Gar Hostile Shots Fired 350 | . 8 7 59 1 . 25 . 250 Missed 144 | . 1 2 14 1 . 11 . 115 Damage Taken 2412 | . 106 81 366 . . 318 . 1541 Core 1140 | . 10 25 125 . . 129 . 851 Absorbed by Shields . | . . . . . . . . . Core Remaining (%) 74 | 100 . 86 . . . 36 . . Volleys Fired 45 | . 4 3 19 . . 19 . . Largest 2 | . 2 2 2 . . 2 . . Hottest 100 | . 80 80 100 . . 100 . . Shots Fired 76 | . 8 6 25 . . 37 . . Gun 67 | . 8 6 16 . . 37 . . Cannon . | . . . . . . . . . Launcher . | . . . . . . . . . Special 9 | . . . 9 . . . . . Kinetic 1 | . . . 1 . . . . . Thermal 9 | . . . 9 . . . . . Explosive . | . . . . . . . . . Electromagnetic 66 | . 8 6 15 . . 37 . . Robot Hit Streak 7 | . 3 2 2 . . 7 . . Robot Miss Streak 6 | . 1 1 4 . . 6 . . Penetration Max . | . . . . . . . . . Secondary Targets 2 | . 1 . . . . 1 . . Max Gunslinging Chain 1 | . 1 . . . . 1 . . Shots Hit Robots 48 | . 5 3 10 . . 29 . 1 Core Hits 35 | . 4 3 7 . . 21 . . Critical Kills 1 | . . . 1 . . . . . Critical Parts Destroyed . | . . . . . . . . . Critical Strikes 2 | . . . 1 . . . . 1 Destroy 1 | . . . 1 . . . . . Sever 1 | . . . . . . . . 1 Melee Attacks 1 | . . . . . . . . 1 Impact . | . . . . . . . . . Slashing 1 | . . . . . . . . 1 Piercing . | . . . . . . . . . Sneak Attacks . | . . . . . . . . . Combat Hostiles . | . . . . . . . . . Follow-up Attacks . | . . . . . . . . . Damage Inflicted 1120 | . 121 49 174 . . 695 . 81 Guns 706 | . 95 49 102 . . 460 . . Cannons . | . . . . . . . . . Explosions 261 | . 26 . . . . 235 . . Melee 49 | . . . . . . . . 49 Ramming 32 | . . . . . . . . 32 Kinetic 10 | . . . 10 . . . . . Thermal 333 | . 26 . 72 . . 235 . . Explosive . | . . . . . . . . . Electromagnetic 696 | . 95 49 92 . . 460 . . Impact . | . . . . . . . . . Slashing 49 | . . . . . . . . 49 Piercing . | . . . . . . . . . Highest Corruption 7 | . . . . . . 7 . . Average Corruption 3 | . . . . . . 3 . . Corruption Purged . | . . . . . . . . . Corruption Blocked . | . . . . . . . . . Effects 10 | . . . . . . 10 . . Message Errors 4 | . . . . . . 4 . . Heat Flow Errors 2 | . . . . . . 2 . . Energy Discharges 2 | . . . . . . 2 . . Data Loss (minor) 1 | . . . . . . 1 . . Alerts 1 | . . . . . . 1 . . Overload Shots . | . . . . . . . . . Overflow Damage . | . . . . . . . . . Projectiles . | . . . . . . . . . Explosions . | . . . . . . . . . Melee . | . . . . . . . . . Knockbacks . | . . . . . . . . . Impact . | . . . . . . . . . Kinetic . | . . . . . . . . . Secondary . | . . . . . . . . . Self-Inflicted Damage 59 | . 15 . . . . 29 . 15 Shots 2 | . 1 . . . . 1 . . Rammed 6 | . . . . . . . . 6 Targets Rammed 6 | . . . . . . . . 6 Kicked . | . . . . . . . . . Crushed . | . . . . . . . . . Highest Temperature 455 | . 135 66 80 . . 455 . . Average Temperature 91 | . 74 30 30 . . 133 . . Received Heat Transfer 441 | . 51 30 15 . . 93 . 252 Effects 2 | . . . . . . 2 . . Shutdowns 1 | . . . . . . 1 . . Damage (minor) 1 | . . . . . . 1 . . Siege Activations . | . . . . . . . . . Robots Corrupted 1 | . . . . . . 1 . . Combat Hostiles 1 | . . . . . . 1 . . Parts Fried 1 | . . . . . . 1 . . Impact Corruptions . | . . . . . . . . . Robots Melted . | . . . . . . . . . Combat Hostiles . | . . . . . . . . . Parts Melted . | . . . . . . . . . Heat Transferred 400 | . . . 150 . . 250 . . Parts Sabotaged . | . . . . . . . . . Parts Stolen . | . . . . . . . . . Parts Stripped . | . . . . . . . . . Power Chain Reactions 3 | . 1 . . . . 2 . . Alert | -11 -10 -10 -9 -9 -7 -6 -6 -6 ------- Run | Yrd Mat Min Mat Min Zio Pro Fac Gar Peak Influence 252 | . 80 111 252 142 . . 176 123 Initial 176 | . . . 35 97 . . 176 123 Average 95 | . 41 72 145 124 . . 176 46 Maximum Alert Level 1 | . . . 1 . . . . . Low Security (%) 85 | 100 100 100 51 100 . . 100 100 Level 1 14 | . . . 48 . . . . . Level 2 . | . . . . . . . . . Level 3 . | . . . . . . . . . Level 4 . | . . . . . . . . . Level 5 . | . . . . . . . . . High Security . | . . . . . . . . . Max Security . | . . . . . . . . . Squads Dispatched 1 | . . . 1 . . . . . Investigation . | . . . . . . . . . Extermination . | . . . . . . . . . Reinforcement 1 | . . . 1 . . . . . Assault . | . . . . . . . . . Garrison . | . . . . . . . . . Intercept . | . . . . . . . . . Searches Triggered . | . . . . . . . . . Construction Impeded . | . . . . . . . . . Haulers Reinforced . | . . . . . . . . . Active Scanning Responses . | . . . . . . . . . Cargo Convoy Interrupts . | . . . . . . . . . Stealth | -11 -10 -10 -9 -9 -7 -6 -6 -6 --------- Run | Yrd Mat Min Mat Min Zio Pro Fac Gar Distress Signals 2 | . . . 2 . . . . . Communications Jammed . | . . . . . . . . . Distress Signals . | . . . . . . . . . Times Spotted 66 | . 2 15 10 2 . 19 . 18 Peak Tracking Total 13 | . 2 11 4 2 . 4 . 13 Tactical Retreats 5 | . . 2 1 1 . 1 . . Traps | -11 -10 -10 -9 -9 -7 -6 -6 -6 ------- Run | Yrd Mat Min Mat Min Zio Pro Fac Gar Traps Triggered . | . . . . . . . . . Indirectly . | . . . . . . . . . Trap Hack Attempts . | . . . . . . . . . Triggered . | . . . . . . . . . Disarmed . | . . . . . . . . . Reprogrammed . | . . . . . . . . . Reused . | . . . . . . . . . Traps Extracted . | . . . . . . . . . Installed . | . . . . . . . . . Triggered 1 | . . . . . . 1 . . Machines | -11 -10 -10 -9 -9 -7 -6 -6 -6 ---------- Run | Yrd Mat Min Mat Min Zio Pro Fac Gar Machines Disabled 1 | . . . 1 . . . . . Max in Single Turn 1 | . . . 1 . . . . . Machines Repaired . | . . . . . . . . . Machines Dismantled . | . . . . . . . . . Machines Sabotaged . | . . . . . . . . . Overloaded Fab Kills . | . . . . . . . . . Hacking | -11 -10 -10 -9 -9 -7 -6 -6 -6 --------- Run | Yrd Mat Min Mat Min Zio Pro Fac Gar Machines Accessed 7 | . 4 . 1 . . . 1 1 Terminals 6 | . 4 . 1 . . . . 1 Fabricators . | . . . . . . . . . Repair Stations . | . . . . . . . . . Recycling Units . | . . . . . . . . . Scanalyzers . | . . . . . . . . . Garrison Access 1 | . . . . . . . 1 . Total Hacks 24 | . 13 . 7 . . . 3 1 Successful 11 | . 6 . 3 . . . 1 1 Failed 13 | . 7 . 4 . . . 2 . Catastrophic 2 | . 1 . 1 . . . . . Database Lockouts . | . . . . . . . . . Manual 15 | . 10 . 3 . . . . 2 Terminals 21 | . 13 . 7 . . . . 1 Fabricators . | . . . . . . . . . Repair Stations . | . . . . . . . . . Recycling Units . | . . . . . . . . . Scanalyzers . | . . . . . . . . . Garrison Access 3 | . . . . . . . 3 . Terminal Hacks 5 | . 2 . 2 . . . . 1 Record 2 | . . . 2 . . . . . Open Door 1 | . . . . . . . . 1 Branch Access Points 1 | . 1 . . . . . . . Unreport Threat 1 | . 1 . . . . . . . Fabricator Hacks . | . . . . . . . . . Repair Station Hacks . | . . . . . . . . . Recycling Unit Hacks . | . . . . . . . . . Scanalyzer . | . . . . . . . . . Garrison Access Hacks 1 | . . . . . . . 1 . Unlock Access 1 | . . . . . . . 1 . Unauthorized Hacks 5 | . 4 . 1 . . . . . Terminals 5 | . 4 . 1 . . . . . Botnet 5 | . 4 . 1 . . . . . Fabricators . | . . . . . . . . . Repair Stations . | . . . . . . . . . Recycling Units . | . . . . . . . . . Scanalyzers . | . . . . . . . . . Garrison Access . | . . . . . . . . . Data Cores Recovered 1 | . . . 1 . . . . . Used 1 | . . . 1 . . . . . Hacking Detections 4 | . 3 . 1 . . . . . Full Trace Events . | . . . . . . . . . Feedback Events . | . . . . . . . . . Feedback Blocked . | . . . . . . . . . Robot Schematics Acquired 3 | . . . . . 3 . . . Robots Built . | . . . . . . . . . Authchips . | . . . . . . . . . Time . | . . . . . . . . . Total Robot Build Rating . | . . . . . . . . . Part Schematics Acquired 14 | . . . . . 14 . . . Parts Built . | . . . . . . . . . Authchips . | . . . . . . . . . Time . | . . . . . . . . . Total Part Build Rating . | . . . . . . . . . Parts Repaired . | . . . . . . . . . Time . | . . . . . . . . . Parts Recycled . | . . . . . . . . . Recycled Matter . | . . . . . . . . . Retrieved Matter . | . . . . . . . . . Retrieved Components . | . . . . . . . . . Parts Scanalyzed . | . . . . . . . . . Part Schematics Acquired . | . . . . . . . . . Parts Damaged . | . . . . . . . . . Bothacking | -11 -10 -10 -9 -9 -7 -6 -6 -6 ------------ Run | Yrd Mat Min Mat Min Zio Pro Fac Gar Used RIF Installer . | . . . . . . . . . Robots Hacked . | . . . . . . . . . Non-combat . | . . . . . . . . . Combat . | . . . . . . . . . Robot Hacks Applied . | . . . . . . . . . Relay Couplers Released . | . . . . . . . . . Fabnet Peak Effective % . | . . . . . . . . . Robots Rewired 2 | . . . . . . . . 2 Allies Hacked . | . . . . . . . . . Hacks Repelled . | . . . . . . . . . Allies | -11 -10 -10 -9 -9 -7 -6 -6 -6 -------- Run | Yrd Mat Min Mat Min Zio Pro Fac Gar Total Allies 12 | . . 3 . 3 4 . . 2 Largest Group 7 | . . 2 1 3 7 7 3 3 Highest-Rated Group 192 | . . 39 31 40 192 192 113 113 Highest-Rated Ally 39 | . . 31 31 16 39 39 39 39 Total Orders . | . . . . . . . . . Ally Attacks 89 | . . 6 11 . . 60 1 11 Total Damage 1789 | . . 85 227 . . 1151 . 326 Kills 16 | . . 2 6 . . 8 . . Allies Corrupted . | . . . . . . . . . Allies Melted . | . . . . . . . . . Intel | -11 -10 -10 -9 -9 -7 -6 -6 -6 ------- Run | Yrd Mat Min Mat Min Zio Pro Fac Gar Robot Analysis Total . | . . . . . . . . . Derelict Logs Recovered 7 | . . 1 . 3 2 1 . . Drone Launches . | . . . . . . . . . Drone Recoveries . | . . . . . . . . . Decoded 0b10 Intel 2 | . . . . . . . . 2 Traps 1 | . . . . . . . . 1 Emergency Access 1 | . . . . . . . . 1 Exploration | -11 -10 -10 -9 -9 -7 -6 -6 -6 ------------- Run | Yrd Mat Min Mat Min Zio Pro Fac Gar Turns Passed 2144 | 40 137 258 330 184 479 538 28 150 Spaces Moved 2589 | 30 195 285 229 476 873 363 10 128 Core 67 | 7 . . 6 . . . . 54 Treads . | . . . . . . . . . Legs 404 | . . . . . . 320 10 74 Wheels 111 | 23 88 . . . . . . . Hover . | . . . . . . . . . Flight 2007 | . 107 285 223 476 873 43 . . Fastest Speed 34 | 50 37 37 34 34 34 34 120 50 Average Speed 61 | 80 60 74 100 34 34 118 120 90 Slowest Speed 190 | 90 90 117 120 34 34 190 120 120 Overloaded Moves . | . . . . . . . . . Propulsion Burnouts . | . . . . . . . . . Robots Hopped . | . . . . . . . . . Cave-ins Triggered . | . . . . . . . . . Exploration Rate (%) 48 | 3 42 58 24 91 82 57 . 29 Regions Visited 8 Branch Regions 4 Pre-discovered Areas 2 | . . . . 1 1 . . . Known Exits Taken 4 | . 1 . 1 . . 1 1 . Unknown Exits Taken 4 | 1 . 1 . 1 1 . . . Scrap Searched 4 | . . 1 . 1 2 . . . Spaces Dug . | . . . . . . . . . Terrain Destroyed 7 | . 2 . 1 . . 4 . . Melee . | . . . . . . . . . Projectile 1 | . . . 1 . . . . . AOE 6 | . 2 . . . . 4 . . Terrain Rammed . | . . . . . . . . . Walls Destroyed . | . . . . . . . . . Machines Disabled . | . . . . . . . . . Actions | -11 -10 -10 -9 -9 -7 -6 -6 -6 --------- Run | Yrd Mat Min Mat Min Zio Pro Fac Gar Total 3040 | 46 205 325 287 497 1059 434 26 161 Wait 274 | 2 . 27 8 22 158 36 12 9 Move 2578 | 29 194 284 228 475 872 362 9 125 Hop . | . . . . . . . . . Pick Up 47 | 7 2 4 14 . 11 6 . 3 Fast Attach . | . . . . . . . . . Attach 41 | 7 . 3 14 . 7 3 4 3 Detach 4 | 1 . 1 . . 2 . . . Swap 6 | . 2 1 . . 1 2 . . Drop 24 | . 3 2 4 . 8 6 1 . Fire 45 | . 4 3 19 . . 19 . . Melee 1 | . . . . . . . . 1 Ram 6 | . . . . . . . . 6 Kick . | . . . . . . . . . Crush . | . . . . . . . . . Escape Stasis . | . . . . . . . . . Rewire 14 | . . . . . . . . 14 Trap . | . . . . . . . . . Miscellaneous . | . . . . . . . . . Route ------- -11/Scrapyard -10/Materials (discovered 3 exits: *Mat / *Min x2) -10/Mines -9/Materials (discovered 2 exits: Mat / *Min) -9/Mines (discovered 2 exits: *Mat / *Zio) -7/Zion -6/Proximity Caves -6/Factory (discovered 2 exits: Fac / Gar) -6/Garrison (discovered 1 exit: [*Fac]) History --------- Turn | Location | Event 25 | -11/Scrapyard | Discovered new exit (range 15) 41 | -11/Scrapyard | Entered Materials 129 | -10/Materials | Discovered new exit (range 16) 154 | -10/Materials | Identified exit to Mines 178 | -10/Materials | Entered Mines 179 | -10/Mines | Assembled infested the area 181 | -10/Mines | Received a Mining Laser from a helpful Derelict 185 | -10/Mines | Assisted by a Guerilla fighting off Assembled 237 | -10/Mines | A weapon hastily lodged in a ceiling crevice suddenly fell to the ground 269 | -10/Mines | Learned 8 Materials zone layouts 315 | -10/Mines | Build established: Mutant 418 | -10/Mines | Discovered new exit (range 13) 436 | -10/Mines | Entered Materials 436 | -9/Materials | Accompanied by 1 ally 436 | -9/Materials | Evolved 2 slots: Propulsion x1, Utility x1 437 | -9/Materials | Identified exit to Materials 437 | -9/Materials | Identified exit to Mines 441 | -9/Materials | Led the pair of lost Derelicts to an unsafe place 764 | -9/Materials | Lost 6 parts (1p2n3w) 766 | -9/Materials | Entered Mines 767 | -9/Mines | Learned location of Storage (-7) 795 | -9/Mines | Learned Materials trap positions 796 | -9/Mines | Learned Materials non-interactive machine intel 799 | -9/Mines | Learned Materials trap positions 843 | -9/Mines | Build established: Hacker-Mutant 855 | -9/Mines | Assisted by bots powering up and referring to "LRC-V3" 889 | -9/Mines | A Derelict revealed a hidden shortcut to a safe place 902 | -9/Mines | Discovered exit to Materials (range 7) 950 | -9/Mines | Entered Zion 950 | -7/Zion | Accompanied by 3 allies 975 | -7/Zion | Discovered new exit (range 12) 1016 | -7/Zion | Learned location of Testing (-3) 1035 | -7/Zion | Given the Hacking Drone Bay 1035 | -7/Zion | Found Prototype Device 1065 | -7/Zion | Learned location of 1 exit from Factory 1071 | -7/Zion | Learned Factory emergency access door positions 1078 | -7/Zion | Found Prototype Launcher 1081 | -7/Zion | Identified Gui. Missile Launcher 1170 | -7/Zion | Imprinted 1172 | -7/Zion | Declared Zion's savior 1228 | -7/Zion | Found Prototype Processor 1429 | -7/Zion | Entered Proximity Caves 1429 | -6/Proximity Caves | Accompanied by 7 allies 1725 | -6/Proximity Caves | Identified exit to Factory 1789 | -6/Proximity Caves | Core integrity fell below 50% 1841 | -6/Proximity Caves | Lost 3 allies 1967 | -6/Proximity Caves | Entered Factory 1967 | -6/Factory | Accompanied by 3 allies 1967 | -6/Factory | Evolved 6 slots: Power x1, Propulsion x1, Utility x3, Weapon x1 1967 | -6/Factory | Identified Exp. Target Analyzer 1968 | -6/Factory | Identified exit to Factory 1982 | -6/Factory | Identified exit to Garrison 1995 | -6/Factory | Entered Garrison 1995 | -6/Garrison | Accompanied by 3 allies 2030 | -6/Garrison | Triggered checkpoint 2032 | -6/Garrison | Triggered checkpoint 2063 | -6/Garrison | Lost 4 parts (1p1u2w) 2072 | -6/Garrison | Lost 3 allies 2078 | -6/Garrison | Discovered new exit (range 10) 2085 | -6/Garrison | Attempted to access garrison exit controls, blocked by remote lockdown 2099 | -6/Garrison | Core integrity fell below 50% 2110 | -6/Garrison | Triggered checkpoint 2113 | -6/Garrison | Core integrity fell below 20% 2131 | -6/Garrison | Lost 8 parts (3n5u) 2145 | -6/Garrison | Destroyed by Y-54 Guardian with Flak Gun Last Messages --------------- ZK-II6(l) rewired. Slug penetrates PG-E6E(l). G-67 Veteran Field Laser severed. Slug penetrates PG-E6E(l). PG-E6E(l) destroyed. Slug penetrates Reinforced Barrier. Acquired Flexi-carbon Leg. Slug penetrates ZK-II6(l). ZK-II6(l) overheating. ZK-II6(l) heat damages Phasing Sabre. ZK-II6(l) overheating. ZK-II6(l) heat damages Phasing Sabre, Flexi-carbon Leg, Neutrino Core, Imp. Melee Analysis Suite. ZK-II6(l) destroyed. Penetrated by Slug. Flexi-carbon Leg destroyed. Acquired Phasing Sabre. G-50 Soldier Lgt. Angular Momentum Engine severed. Map ----- +----------------------------------------------------+ | ??????????# #????????? ????????????????????????? | | ??????????# #????????# #???????????????????????? | | ??????????# ########?# #???????????????????????? | | ??????????# #? #???????????????????????? | | ??????????# ###### #?# #???????????????????????? | | ??????????# #????# #?# #??????????????????#####? | | ??????????# #????# #?# #?###??????????????# #? | | ??????????# ###### ###"###T#######+######## < #? | | ??????????# #? | | ??????????# = ! #? | | ??????????# *%[ % #? | | ??????????########## ###+########### ############? | | ???????????????????# #?# #?????????###???????????? | | ???????????????????# #?# #???????????????????????? | | ???????????????????# ######??????????????????????? | | ???????????????????# ## #??????????????????????? | | ???????????????????# ## #######????????????????? | | ???????????????????# %%% #????????????????? | | ???????????????????#####%####" #????????????????? | | ????????????????????####g##??????????????????????? | | ???????????????????## hY#??????????????????????? | | ???????????????????# Y Y #??????????????????????? | | ???????????????????# hYg ##?????????????????????? | | ???????????????????## gghT#?????????????????????? | | ????????????????????####[g##?????????????????????? | | ????????????????????# Y%@#??????????????????????? | | ????????????????????# #??????????????????????? | | ????????????????????#######??????????????????????? | | ?????????????????????????????????????????????????? | | ?????????????????????????????????????????????????? | | ?????????????????????????????????????????????????? | | ?????????????????????????????????????????????????? | | ?????????????????????????????????????????????????? | | ?????????????????????????????????????????????????? | | ?????????????????????????????????????????????????? | | ?????????????????????????????????????????????????? | | ?????????????????????????????????????????????????? | | ?????????????????????????????????????????????????? | | ?????????????????????????????????????????????????? | | ?????????????????????????????????????????????????? | | | | | | | | | | | | | | | | | | | | | +----------------------------------------------------+ Best States ------------- Heat Dissipation 37 Energy Generation 21 Energy Capacity 170 Matter Stores 300 Matter Capacity 300 Sight Range 18 Terrain Scan Density 10 Evasion (%) 63 Targeting Accuracy 5 Offensive Hacking 14 Defensive Hacking 40 Item Schematics ----------------- 0b10 Decoder Chip [Skirmisher] | -7/Zion | Archive Mak. Light Armor Plating | -7/Zion | Archive Gravmag System | -7/Zion | Archive Magnetic Acceleration Cannon | -7/Zion | Archive Adv. Plasma Cannon | -7/Zion | Archive Core Analyzer | -7/Zion | Archive Imp. Heavy Armor Plating | -7/Zion | Archive Gatling Laser | -7/Zion | Archive Adv. Melee Analysis Suite | -7/Zion | Archive Mak. Terrain Scan Processor | -7/Zion | Archive Imp. Shield Generator | -7/Zion | Archive Imp. Reaction Control System | -7/Zion | Archive Shock Absorption System | -7/Zion | Archive Adv. Hacking Suite | -7/Zion | Archive Robot Schematics ------------------ O-24 Administrator | -7/Zion | Archive Y-54 Guardian | -7/Zion | Archive T-07 Excavator | -7/Zion | Archive Fabricated ------------ Nothing Alien Tech Used ----------------- None Achievements -------------- None Challenges ------------ None Game ------ Seed SmartbombMultinovaCleaver Manual? 0 Play Time 00:39:29 Cumulative 10.3 hours Start 2024.04.09 @ 19:45:13 End 2024.04.09 @ 21:39:09 Sessions 1 Manual Loads 0 Difficulty Rogue Special Mode None Game No. 24 Rogue 24 Adventurer 0 Explorer 0 Win Type - Total 0 Types 0/0/0/0/0/0/0/0/0 Lore% 18 Gallery% 21 Achievement% 19 Wizard Run 0 Options --------- Layout 2 ASCII 0 Keyboard 0 Movement Numpad Keybinds 0 Fullscreen 1 Font 24/Smallcaps Map View 50x44 Zoom Use 0% Tactical HUD 0 Map Filters NONE Filters NONE Steam 1 RUN: b7ae1fe7-4a6c-4c6d-b80e-9be309c07c75